[Event "Early-Titled-Tuesday-Blitz-February-13-2024"]
[Site "Chess.com"]
[Date "2024.02.13"]
[Round "6"]
[White "PLAYER_2006_M"]
[Black "Sokoloco"]
[Result "1-0"]
[WhiteElo "3020"]
[BlackElo "2799"]
[TimeControl "180+1"]
[EndTime "9:08:52 PST"]
[Termination "PLAYER_2006_M won by resignation"]

1. e4 {[%clk 0:03:00.9]} 1... d6 {[%clk 0:03:00.4]} 2. d4 {[%clk 0:03:00.7]}
2... g6 {[%clk 0:03:01.1]} 3. Nc3 {[%clk 0:03:00.2]} 3... Bg7 {[%clk 0:03:01.7]}
4. Nf3 {[%clk 0:02:55.7]} 4... a6 {[%clk 0:03:01.6]} 5. Bd3 {[%clk 0:02:48.4]}
5... b5 {[%clk 0:03:00.8]} 6. h3 {[%clk 0:02:47.6]} 6... Bb7 {[%clk 0:03:00.6]}
7. Ne2 {[%clk 0:02:48.1]} 7... Nd7 {[%clk 0:03:00.1]} 8. O-O {[%clk 0:02:47.6]}
8... c5 {[%clk 0:03:00.3]} 9. c3 {[%clk 0:02:47.5]} 9... e6 {[%clk 0:02:50.5]}
10. a4 {[%clk 0:02:40.6]} 10... b4 {[%clk 0:02:46.7]} 11. cxb4 {[%clk
0:02:39.7]} 11... cxd4 {[%clk 0:02:46.9]} 12. Nexd4 {[%clk 0:02:37.5]} 12... Ne7
{[%clk 0:02:45.9]} 13. Nb3 {[%clk 0:02:34]} 13... O-O {[%clk 0:02:35.6]} 14. Na5
{[%clk 0:02:32.3]} 14... Qb8 {[%clk 0:02:26.8]} 15. Rb1 {[%clk 0:02:27]} 15...
Nc6 {[%clk 0:02:26.6]} 16. Nxb7 {[%clk 0:02:17.9]} 16... Qxb7 {[%clk 0:02:26.9]}
17. b5 {[%clk 0:02:18.6]} 17... axb5 {[%clk 0:02:20]} 18. Bxb5 {[%clk
0:02:19.5]} 18... Nde5 {[%clk 0:01:49.1]} 19. Be3 {[%clk 0:02:15.2]} 19... Nxf3+
{[%clk 0:01:44]} 20. Qxf3 {[%clk 0:02:15.7]} 20... Nd4 {[%clk 0:01:44.7]} 21.
Bxd4 {[%clk 0:02:13.2]} 21... Bxd4 {[%clk 0:01:45.6]} 22. b4 {[%clk 0:02:08.2]}
22... Rfc8 {[%clk 0:01:41.5]} 23. Rfc1 {[%clk 0:02:08.3]} 23... Qb6 {[%clk
0:01:26.7]} 24. g3 {[%clk 0:02:05.6]} 24... h5 {[%clk 0:01:26]} 25. h4 {[%clk
0:02:05.3]} 25... Be5 {[%clk 0:01:14.6]} 26. Kg2 {[%clk 0:02:02.6]} 26... Qd4
{[%clk 0:01:14.8]} 27. Bc6 {[%clk 0:01:49.6]} 27... Ra6 {[%clk 0:00:56.7]} 28.
Bd7 {[%clk 0:01:43.2]} 28... Rxc1 {[%clk 0:00:51.8]} 29. Rxc1 {[%clk 0:01:44.1]}
29... Qxb4 {[%clk 0:00:46.9]} 30. Bxe6 {[%clk 0:01:33.6]} 30... fxe6 {[%clk
0:00:42]} 31. Rc7 {[%clk 0:01:11.5]} 31... Bf6 {[%clk 0:00:27.1]} 32. Qxf6
{[%clk 0:01:08.9]} 32... Qxe4+ {[%clk 0:00:27.7]} 33. Kh2 {[%clk 0:01:09.2]} 1-0

[Event "Early-Titled-Tuesday-Blitz-February-13-2024"]
[Site "Chess.com"]
[Date "2024.02.13"]
[Round "6"]
[White "YurasovMat-2012"]
[Black "FARIZA2018"]
[Result "1-0"]
[WhiteElo "2679"]
[BlackElo "2522"]
[TimeControl "180+1"]
[EndTime "9:08:55 PST"]
[Termination "YurasovMat-2012 won on time"]

1. e4 {[%clk 0:02:59.3]} 1... e5 {[%clk 0:03:00.1]} 2. Nf3 {[%clk 0:02:59.1]}
2... Nf6 {[%clk 0:03:00.3]} 3. Nxe5 {[%clk 0:02:58.9]} 3... d6 {[%clk
0:03:00.4]} 4. Nf3 {[%clk 0:02:58.9]} 4... Nxe4 {[%clk 0:03:00.7]} 5. Nc3 {[%clk
0:02:59.3]} 5... Nxc3 {[%clk 0:02:59.4]} 6. dxc3 {[%clk 0:03:00.2]} 6... Be7
{[%clk 0:02:59.8]} 7. Be3 {[%clk 0:02:59.6]} 7... Nd7 {[%clk 0:02:59.1]} 8. Qd2
{[%clk 0:02:58]} 8... Ne5 {[%clk 0:02:53.5]} 9. Nd4 {[%clk 0:02:56.5]} 9... O-O
{[%clk 0:02:46.8]} 10. O-O-O {[%clk 0:02:55.3]} 10... a5 {[%clk 0:02:44.8]} 11.
h3 {[%clk 0:02:54.7]} 11... Bd7 {[%clk 0:02:34.9]} 12. f4 {[%clk 0:02:54.5]}
12... Nc6 {[%clk 0:02:35]} 13. Nf3 {[%clk 0:02:51.2]} 13... Rb8 {[%clk
0:02:18.4]} 14. Bb5 {[%clk 0:02:46.9]} 14... Qe8 {[%clk 0:02:00.2]} 15. Rhe1
{[%clk 0:02:44.3]} 15... Nd8 {[%clk 0:01:59.6]} 16. Bxd7 {[%clk 0:02:42.5]}
16... Qxd7 {[%clk 0:01:59.7]} 17. g4 {[%clk 0:02:43.1]} 17... Nc6 {[%clk
0:01:54.3]} 18. f5 {[%clk 0:02:41.7]} 18... b5 {[%clk 0:01:54.1]} 19. Bg5 {[%clk
0:02:32.4]} 19... Bxg5 {[%clk 0:01:47.6]} 20. Nxg5 {[%clk 0:02:33.3]} 20... f6
{[%clk 0:01:41.1]} 21. Ne6 {[%clk 0:02:30.1]} 21... Rf7 {[%clk 0:01:36.9]} 22.
Nf4 {[%clk 0:02:21.6]} 22... b4 {[%clk 0:01:33.9]} 23. c4 {[%clk 0:02:18.4]}
23... Ne5 {[%clk 0:01:33.2]} 24. b3 {[%clk 0:02:15.8]} 24... a4 {[%clk
0:01:32.6]} 25. Kb1 {[%clk 0:02:15.4]} 25... axb3 {[%clk 0:01:29.1]} 26. cxb3
{[%clk 0:02:15.2]} 26... Qc6 {[%clk 0:01:28.1]} 27. Ne6 {[%clk 0:02:09.2]} 27...
Qa6 {[%clk 0:01:22.1]} 28. Qd5 {[%clk 0:02:03.8]} 28... Ra8 {[%clk 0:00:49.4]}
29. Re2 {[%clk 0:02:02.1]} 29... c6 {[%clk 0:00:31.9]} 30. Qxd6 {[%clk
0:02:00.4]} 30... Rd7 {[%clk 0:00:31.6]} 31. Qxd7 {[%clk 0:01:53.6]} 31... Nxd7
{[%clk 0:00:31.7]} 32. Rxd7 {[%clk 0:01:54.5]} 32... Qb6 {[%clk 0:00:27.6]} 33.
Nd4 {[%clk 0:01:45]} 33... Rd8 {[%clk 0:00:21.5]} 34. c5 {[%clk 0:01:44]} 34...
Qa5 {[%clk 0:00:03.2]} 35. Nxc6 {[%clk 0:01:42.9]} 1-0

[Event "Early-Titled-Tuesday-Blitz-February-13-2024"]
[Site "Chess.com"]
[Date "2024.02.13"]
[Round "6"]
[White "Bauman_Guy"]
[Black "mbachez"]
[Result "1-0"]
[WhiteElo "2887"]
[BlackElo "2634"]
[TimeControl "180+1"]
[EndTime "9:08:58 PST"]
[Termination "Bauman_Guy won by resignation"]

1. e4 {[%clk 0:03:00.9]} 1... c6 {[%clk 0:02:55.5]} 2. d4 {[%clk 0:03:00.7]}
2... d5 {[%clk 0:02:55.5]} 3. e5 {[%clk 0:03:01.2]} 3... Qb6 {[%clk 0:02:54.3]}
4. Nc3 {[%clk 0:02:57.6]} 4... Bf5 {[%clk 0:02:53.7]} 5. Na4 {[%clk 0:02:55.5]}
5... Qa5+ {[%clk 0:02:47.7]} 6. c3 {[%clk 0:02:55.6]} 6... e6 {[%clk 0:02:46.1]}
7. h4 {[%clk 0:02:39.9]} 7... h6 {[%clk 0:02:43.9]} 8. b4 {[%clk 0:02:30.3]}
8... Qc7 {[%clk 0:02:30.1]} 9. Be3 {[%clk 0:02:29.6]} 9... Nd7 {[%clk
0:02:27.3]} 10. g4 {[%clk 0:02:23.5]} 10... Be4 {[%clk 0:02:26.6]} 11. f3 {[%clk
0:02:23.6]} 11... Bh7 {[%clk 0:02:26.6]} 12. Ne2 {[%clk 0:02:20.2]} 12... a5
{[%clk 0:02:20.4]} 13. a3 {[%clk 0:02:19.3]} 13... Ne7 {[%clk 0:02:15.7]} 14. h5
{[%clk 0:02:18.5]} 14... Nc8 {[%clk 0:02:09.3]} 15. Nf4 {[%clk 0:02:14.1]} 15...
b6 {[%clk 0:01:43.7]} 16. Kf2 {[%clk 0:02:10.7]} 16... Qa7 {[%clk 0:01:39.8]}
17. Bd3 {[%clk 0:01:54.4]} 17... Bxd3 {[%clk 0:01:22.7]} 18. Qxd3 {[%clk
0:01:55.3]} 18... Be7 {[%clk 0:01:19.8]} 19. Nxe6 {[%clk 0:01:32.4]} 19... fxe6
{[%clk 0:01:09.1]} 20. Qg6+ {[%clk 0:01:31.9]} 20... Kd8 {[%clk 0:00:56.9]} 21.
Qxg7 {[%clk 0:01:31.2]} 21... Re8 {[%clk 0:00:49.8]} 22. Qxh6 {[%clk 0:01:27.4]}
22... b5 {[%clk 0:00:46.3]} 23. Nc5 {[%clk 0:01:25.1]} 23... Nxc5 {[%clk
0:00:43.3]} 24. bxc5 {[%clk 0:01:24.3]} 24... Qd7 {[%clk 0:00:25.7]} 25. Qg6
{[%clk 0:01:19.4]} 25... Bf8 {[%clk 0:00:20.3]} 26. h6 {[%clk 0:01:19.2]} 26...
Ne7 {[%clk 0:00:20.3]} 27. Qf7 {[%clk 0:01:19.4]} 27... Bxh6 {[%clk 0:00:16.3]}
28. Rxh6 {[%clk 0:01:20.3]} 28... Nc8 {[%clk 0:00:13.6]} 29. Bg5+ {[%clk
0:01:15.8]} 29... Kc7 {[%clk 0:00:13.7]} 30. Qxd7+ {[%clk 0:01:16.1]} 30... Kxd7
{[%clk 0:00:13.7]} 31. Rh7+ {[%clk 0:01:17]} 31... Ne7 {[%clk 0:00:13.8]} 32.
Rah1 {[%clk 0:01:16]} 32... Ra7 {[%clk 0:00:12.2]} 33. Bxe7 {[%clk 0:01:13.9]}
33... Rxe7 {[%clk 0:00:12]} 34. Rxe7+ {[%clk 0:01:14.1]} 1-0

[Event "Early-Titled-Tuesday-Blitz-February-13-2024"]
[Site "Chess.com"]
[Date "2024.02.13"]
[Round "6"]
[White "Njal28"]
[Black "SirGerhard"]
[Result "1-0"]
[WhiteElo "2990"]
[BlackElo "2801"]
[TimeControl "180+1"]
[EndTime "9:09:11 PST"]
[Termination "Njal28 won by resignation"]

1. d4 {[%clk 0:03:00.9]} 1... Nf6 {[%clk 0:02:59.7]} 2. c4 {[%clk 0:02:58.4]}
2... e6 {[%clk 0:02:59.9]} 3. Nc3 {[%clk 0:02:57.8]} 3... Bb4 {[%clk 0:03:00.1]}
4. e3 {[%clk 0:02:57.7]} 4... O-O {[%clk 0:02:59.6]} 5. a3 {[%clk 0:02:57.8]}
5... Bxc3+ {[%clk 0:02:58.8]} 6. bxc3 {[%clk 0:02:58.7]} 6... d5 {[%clk
0:02:59.1]} 7. cxd5 {[%clk 0:02:57.7]} 7... exd5 {[%clk 0:02:58.6]} 8. Bd3
{[%clk 0:02:57.9]} 8... c5 {[%clk 0:02:59]} 9. Ne2 {[%clk 0:02:57.5]} 9... b6
{[%clk 0:02:59.4]} 10. O-O {[%clk 0:02:57.8]} 10... Ba6 {[%clk 0:02:59.7]} 11.
f3 {[%clk 0:02:58.1]} 11... Re8 {[%clk 0:02:59]} 12. Ng3 {[%clk 0:02:57.6]}
12... Bxd3 {[%clk 0:02:51.1]} 13. Qxd3 {[%clk 0:02:57.9]} 13... Nc6 {[%clk
0:02:51.5]} 14. Bb2 {[%clk 0:02:58.4]} 14... h5 {[%clk 0:02:36.9]} 15. e4 {[%clk
0:02:50.4]} 15... h4 {[%clk 0:02:28.3]} 16. Nf5 {[%clk 0:02:50.5]} 16... dxe4
{[%clk 0:02:28.7]} 17. fxe4 {[%clk 0:02:51.4]} 17... Nxe4 {[%clk 0:02:23.4]} 18.
d5 {[%clk 0:02:44.7]} 18... c4 {[%clk 0:01:54.4]} 19. Qxc4 {[%clk 0:02:43.9]}
19... Na5 {[%clk 0:01:48.4]} 20. Qd3 {[%clk 0:02:27.2]} 20... Nb3 {[%clk
0:01:35]} 21. c4 {[%clk 0:02:27.4]} 21... Nxa1 {[%clk 0:01:20]} 22. Nxg7 {[%clk
0:02:18.2]} 22... Qg5 {[%clk 0:01:19.3]} 23. Nxe8 {[%clk 0:02:04.8]} 23... Rxe8
{[%clk 0:01:18.6]} 24. Bxa1 {[%clk 0:02:00.9]} 24... Nc5 {[%clk 0:00:57.7]} 25.
Qc2 {[%clk 0:01:46.6]} 25... Qe3+ {[%clk 0:00:51.3]} 26. Kh1 {[%clk 0:01:44.2]}
26... Nd3 {[%clk 0:00:41.9]} 27. h3 {[%clk 0:01:40.3]} 27... Qe2 {[%clk
0:00:39.1]} 28. Qxe2 {[%clk 0:01:22.1]} 28... Rxe2 {[%clk 0:00:39]} 29. Bf6
{[%clk 0:01:22.9]} 29... Nc5 {[%clk 0:00:25.3]} 30. Bxh4 {[%clk 0:01:19.1]}
30... Re4 {[%clk 0:00:25.3]} 31. Bf6 {[%clk 0:01:01]} 31... Rxc4 {[%clk
0:00:25.4]} 32. d6 {[%clk 0:01:01.6]} 32... Nd7 {[%clk 0:00:16.6]} 33. Be7
{[%clk 0:01:01.9]} 33... Rd4 {[%clk 0:00:15.9]} 34. Rc1 {[%clk 0:00:59.9]} 34...
f6 {[%clk 0:00:15.5]} 35. Rc7 {[%clk 0:00:58.8]} 35... Nc5 {[%clk 0:00:15.9]}
36. Rxa7 {[%clk 0:00:57.3]} 36... Kf7 {[%clk 0:00:16.5]} 37. Bd8+ {[%clk
0:00:56.5]} 37... Ke6 {[%clk 0:00:16.6]} 38. Bxb6 {[%clk 0:00:56.8]} 38... Ne4
{[%clk 0:00:17.1]} 39. Bxd4 {[%clk 0:00:56.8]} 1-0

[Event "Early-Titled-Tuesday-Blitz-February-13-2024"]
[Site "Chess.com"]
[Date "2024.02.13"]
[Round "6"]
[White "davigator"]
[Black "Klavdia_Nik"]
[Result "1-0"]
[WhiteElo "2318"]
[BlackElo "2128"]
[TimeControl "180+1"]
[EndTime "9:09:19 PST"]
[Termination "davigator won on time"]

1. e4 {[%clk 0:02:55.1]} 1... e6 {[%clk 0:02:58.8]} 2. d4 {[%clk 0:02:51]} 2...
d5 {[%clk 0:02:58.9]} 3. Nc3 {[%clk 0:02:48.4]} 3... dxe4 {[%clk 0:02:58.2]} 4.
Nxe4 {[%clk 0:02:33.7]} 4... Bd7 {[%clk 0:02:59.1]} 5. Nf3 {[%clk 0:02:33]} 5...
Bc6 {[%clk 0:02:58]} 6. Bd3 {[%clk 0:02:33.3]} 6... Nd7 {[%clk 0:02:57.9]} 7.
Qe2 {[%clk 0:02:33.4]} 7... Ngf6 {[%clk 0:02:57.6]} 8. Ng3 {[%clk 0:02:31.5]}
8... Be7 {[%clk 0:02:46.4]} 9. O-O {[%clk 0:02:29.9]} 9... Bxf3 {[%clk
0:02:46.2]} 10. Qxf3 {[%clk 0:02:30.1]} 10... c6 {[%clk 0:02:47.1]} 11. c4
{[%clk 0:02:29.7]} 11... Qc7 {[%clk 0:02:45.2]} 12. Bf4 {[%clk 0:02:28.1]} 12...
Bd6 {[%clk 0:02:44.8]} 13. Be3 {[%clk 0:02:25]} 13... O-O {[%clk 0:02:39.9]} 14.
Rfe1 {[%clk 0:02:22.7]} 14... Rfe8 {[%clk 0:02:31.1]} 15. Rad1 {[%clk
0:02:21.7]} 15... Rad8 {[%clk 0:02:29.5]} 16. Nf1 {[%clk 0:02:20.1]} 16... b6
{[%clk 0:02:25.7]} 17. Qh3 {[%clk 0:02:17.6]} 17... Bf4 {[%clk 0:02:18.5]} 18.
Ng3 {[%clk 0:02:09.7]} 18... Bxe3 {[%clk 0:02:13.2]} 19. fxe3 {[%clk 0:02:09.9]}
19... c5 {[%clk 0:02:10.1]} 20. Ne2 {[%clk 0:02:05.8]} 20... Nf8 {[%clk
0:02:02.9]} 21. Rf1 {[%clk 0:02:04.9]} 21... Ng6 {[%clk 0:01:28.6]} 22. Rf2
{[%clk 0:02:02.3]} 22... cxd4 {[%clk 0:01:25.4]} 23. exd4 {[%clk 0:02:02.1]}
23... e5 {[%clk 0:01:12.4]} 24. d5 {[%clk 0:01:52.8]} 24... e4 {[%clk
0:01:10.7]} 25. Bc2 {[%clk 0:01:52.9]} 25... Qxc4 {[%clk 0:01:07.9]} 26. Bb3
{[%clk 0:01:53]} 26... Qc5 {[%clk 0:01:04.1]} 27. Nd4 {[%clk 0:01:51.2]} 27...
Nxd5 {[%clk 0:00:54]} 28. Kh1 {[%clk 0:01:38.6]} 28... e3 {[%clk 0:00:43.7]} 29.
Rc2 {[%clk 0:01:29.9]} 29... Qd6 {[%clk 0:00:20.9]} 30. g3 {[%clk 0:01:21.8]}
30... Qe5 {[%clk 0:00:20]} 31. Re2 {[%clk 0:01:18.7]} 31... Nf6 {[%clk 0:00:15]}
32. Nf3 {[%clk 0:01:13.1]} 32... Rxd1+ {[%clk 0:00:14.3]} 33. Bxd1 {[%clk
0:01:13.1]} 33... Qd5 {[%clk 0:00:12.6]} 34. Qf1 {[%clk 0:01:11.8]} 34... Ng4
{[%clk 0:00:10.9]} 35. Bb3 {[%clk 0:01:09]} 35... Qe4 {[%clk 0:00:08.5]} 36. h3
{[%clk 0:01:08.8]} 36... Nf2+ {[%clk 0:00:08.5]} 37. Kg2 {[%clk 0:01:09.5]}
37... Ne5 {[%clk 0:00:05.9]} 38. Qxf2 {[%clk 0:01:09.1]} 1-0

[Event "Early-Titled-Tuesday-Blitz-February-13-2024"]
[Site "Chess.com"]
[Date "2024.02.13"]
[Round "6"]
[White "TitarovVasiliYouTube"]
[Black "Ducke13"]
[Result "1-0"]
[WhiteElo "2520"]
[BlackElo "2326"]
[TimeControl "180+1"]
[EndTime "9:09:20 PST"]
[Termination "TitarovVasiliYouTube won on time"]

1. Nf3 {[%clk 0:02:55.2]} 1... Nf6 {[%clk 0:02:59.4]} 2. g3 {[%clk 0:02:56.1]}
2... g6 {[%clk 0:02:58.7]} 3. Bg2 {[%clk 0:02:57]} 3... Bg7 {[%clk 0:02:56.2]}
4. O-O {[%clk 0:02:57.9]} 4... O-O {[%clk 0:02:55.8]} 5. c4 {[%clk 0:02:58.2]}
5... c5 {[%clk 0:02:55.7]} 6. Nc3 {[%clk 0:02:58.3]} 6... Nc6 {[%clk 0:02:56.2]}
7. d3 {[%clk 0:02:57.3]} 7... Rb8 {[%clk 0:02:53.6]} 8. Be3 {[%clk 0:02:56.5]}
8... d6 {[%clk 0:02:51]} 9. Rb1 {[%clk 0:02:56.3]} 9... a6 {[%clk 0:02:50.7]}
10. a3 {[%clk 0:02:56.5]} 10... b5 {[%clk 0:02:50.2]} 11. cxb5 {[%clk
0:02:55.5]} 11... axb5 {[%clk 0:02:51.1]} 12. b4 {[%clk 0:02:56.1]} 12... cxb4
{[%clk 0:02:42.3]} 13. axb4 {[%clk 0:02:57]} 13... d5 {[%clk 0:02:39.5]} 14. Nd4
{[%clk 0:02:40.3]} 14... Nxd4 {[%clk 0:02:33.8]} 15. Bxd4 {[%clk 0:02:41.2]}
15... e6 {[%clk 0:02:21.4]} 16. Qb3 {[%clk 0:02:33.5]} 16... Re8 {[%clk
0:02:19.9]} 17. Be5 {[%clk 0:02:32.5]} 17... Rb6 {[%clk 0:02:15.9]} 18. Rfc1
{[%clk 0:02:31.1]} 18... Bf8 {[%clk 0:02:10.2]} 19. Ne4 {[%clk 0:02:18.1]} 19...
Nxe4 {[%clk 0:01:19.1]} 20. dxe4 {[%clk 0:02:17.6]} 20... Bd6 {[%clk 0:01:11.6]}
21. Bd4 {[%clk 0:02:13]} 21... Ra6 {[%clk 0:01:05]} 22. exd5 {[%clk 0:02:12.8]}
22... e5 {[%clk 0:01:02]} 23. Bc5 {[%clk 0:02:10.2]} 23... e4 {[%clk 0:01:02.4]}
24. Bxd6 {[%clk 0:02:06.9]} 24... Qxd6 {[%clk 0:01:02.1]} 25. Bxe4 {[%clk
0:02:07.6]} 25... Rxe4 {[%clk 0:00:46.1]} 26. Rxc8+ {[%clk 0:02:07.4]} 26... Kg7
{[%clk 0:00:46.8]} 27. Qc3+ {[%clk 0:02:08]} 27... Kh6 {[%clk 0:00:31.6]} 28.
Qd3 {[%clk 0:01:31.4]} 28... f5 {[%clk 0:00:13.4]} 29. Qxb5 {[%clk 0:01:27.4]}
29... Ra2 {[%clk 0:00:08.5]} 30. e3 {[%clk 0:01:17.3]} 30... f4 {[%clk
0:00:03.9]} 31. exf4 {[%clk 0:01:02.5]} 31... Ree2 {[%clk 0:00:03]} 32. Rf1
{[%clk 0:01:01.8]} 32... Rad2 {[%clk 0:00:02.4]} 33. Qc5 {[%clk 0:00:59.5]} 1-0

[Event "Early-Titled-Tuesday-Blitz-February-13-2024"]
[Site "Chess.com"]
[Date "2024.02.13"]
[Round "6"]
[White "GrumbleBruno"]
[Black "kakarot_001"]
[Result "0-1"]
[WhiteElo "2469"]
[BlackElo "2650"]
[TimeControl "180+1"]
[EndTime "9:09:24 PST"]
[Termination "kakarot_001 won by resignation"]

1. e4 {[%clk 0:02:54.7]} 1... e5 {[%clk 0:02:44.1]} 2. Nf3 {[%clk 0:02:53.8]}
2... Nc6 {[%clk 0:02:44.4]} 3. Bb5 {[%clk 0:02:53.8]} 3... a6 {[%clk 0:02:44.7]}
4. Ba4 {[%clk 0:02:54.2]} 4... Nf6 {[%clk 0:02:45.3]} 5. d4 {[%clk 0:02:54.7]}
5... exd4 {[%clk 0:02:41.9]} 6. O-O {[%clk 0:02:53.8]} 6... Be7 {[%clk
0:02:37.1]} 7. e5 {[%clk 0:02:53.8]} 7... Ne4 {[%clk 0:02:35.4]} 8. Nxd4 {[%clk
0:02:53.8]} 8... Nc5 {[%clk 0:02:32.3]} 9. Nf5 {[%clk 0:02:53.6]} 9... Ne6
{[%clk 0:02:20.3]} 10. Re1 {[%clk 0:02:46.3]} 10... O-O {[%clk 0:02:17.3]} 11.
Nc3 {[%clk 0:02:44.3]} 11... Re8 {[%clk 0:02:09.2]} 12. Nd5 {[%clk 0:01:43.2]}
12... Bf8 {[%clk 0:02:01.5]} 13. Qg4 {[%clk 0:01:22]} 13... Kh8 {[%clk
0:01:21.9]} 14. Bf4 {[%clk 0:00:38.6]} 14... d6 {[%clk 0:01:07]} 15. exd6 {[%clk
0:00:33.4]} 15... cxd6 {[%clk 0:01:07.9]} 16. Qd1 {[%clk 0:00:18.1]} 16... Nxf4
{[%clk 0:00:55.2]} 17. Rxe8 {[%clk 0:00:17.5]} 17... Qxe8 {[%clk 0:00:56.1]} 18.
Nc7 {[%clk 0:00:15]} 18... Qe4 {[%clk 0:00:55.3]} 19. f3 {[%clk 0:00:14.4]}
19... Qxf5 {[%clk 0:00:52]} 20. Nxa8 {[%clk 0:00:13.8]} 20... Qg5 {[%clk
0:00:51.3]} 21. g3 {[%clk 0:00:13.7]} 21... Ne5 {[%clk 0:00:44.7]} 22. Nb6
{[%clk 0:00:13.3]} 22... Be6 {[%clk 0:00:28.1]} 23. Bb3 {[%clk 0:00:11]} 23...
d5 {[%clk 0:00:27.3]} 24. c3 {[%clk 0:00:10.5]} 24... Bc5+ {[%clk 0:00:27]} 0-1

[Event "Early-Titled-Tuesday-Blitz-February-13-2024"]
[Site "Chess.com"]
[Date "2024.02.13"]
[Round "6"]
[White "Louis-Paulsen-Fan"]
[Black "regenda"]
[Result "1-0"]
[WhiteElo "2270"]
[BlackElo "2086"]
[TimeControl "180+1"]
[EndTime "9:09:26 PST"]
[Termination "Louis-Paulsen-Fan won by resignation"]

1. d4 {[%clk 0:02:54.7]} 1... Nf6 {[%clk 0:02:59.6]} 2. Nf3 {[%clk 0:02:55.3]}
2... c5 {[%clk 0:02:59.3]} 3. d5 {[%clk 0:02:54.5]} 3... e6 {[%clk 0:02:59.6]}
4. c4 {[%clk 0:02:55]} 4... exd5 {[%clk 0:03:00.2]} 5. cxd5 {[%clk 0:02:55.9]}
5... Bd6 {[%clk 0:03:00.4]} 6. Nc3 {[%clk 0:02:56.6]} 6... O-O {[%clk
0:03:00.4]} 7. g3 {[%clk 0:02:53.7]} 7... Re8 {[%clk 0:03:00.3]} 8. Bg2 {[%clk
0:02:54]} 8... Bc7 {[%clk 0:03:00.8]} 9. O-O {[%clk 0:02:50.7]} 9... d6 {[%clk
0:03:00.7]} 10. Nd2 {[%clk 0:02:46.7]} 10... Nbd7 {[%clk 0:03:00.9]} 11. a4
{[%clk 0:02:46.2]} 11... Rb8 {[%clk 0:03:00.6]} 12. e4 {[%clk 0:02:42.2]} 12...
a6 {[%clk 0:03:00.4]} 13. f4 {[%clk 0:02:36.8]} 13... b5 {[%clk 0:02:58.5]} 14.
axb5 {[%clk 0:02:37]} 14... axb5 {[%clk 0:02:59.4]} 15. b4 {[%clk 0:02:28.7]}
15... cxb4 {[%clk 0:02:56.8]} 16. Na2 {[%clk 0:02:28.9]} 16... Ba5 {[%clk
0:02:55.6]} 17. Rb1 {[%clk 0:02:17.7]} 17... Nc5 {[%clk 0:02:55.5]} 18. Nxb4
{[%clk 0:02:08.4]} 18... Bxb4 {[%clk 0:02:55.5]} 19. Rxb4 {[%clk 0:02:08.1]}
19... Nd3 {[%clk 0:02:56.2]} 20. Rb1 {[%clk 0:01:58.6]} 20... Bg4 {[%clk
0:02:53.2]} 21. Qc2 {[%clk 0:01:40.1]} 21... Qb6+ {[%clk 0:02:52]} 22. Kh1
{[%clk 0:01:40.4]} 22... Nf2+ {[%clk 0:02:52.1]} 23. Rxf2 {[%clk 0:01:35.8]}
23... Qxf2 {[%clk 0:02:53]} 24. Bb2 {[%clk 0:01:35.9]} 24... Rbc8 {[%clk
0:02:45.2]} 25. Qd3 {[%clk 0:01:31.8]} 25... Be2 {[%clk 0:02:18.2]} 26. Qb3
{[%clk 0:01:30]} 26... Bc4 {[%clk 0:01:41.1]} 27. Qb4 {[%clk 0:01:29.9]} 27...
Nxe4 {[%clk 0:01:31.7]} 28. Nxe4 {[%clk 0:01:26]} 28... Bxd5 {[%clk 0:01:26.2]}
29. Rf1 {[%clk 0:00:33.1]} 29... Qe2 {[%clk 0:00:56.5]} 30. Qd4 {[%clk 0:00:32]}
30... f6 {[%clk 0:00:37.9]} 31. Qxd5+ {[%clk 0:00:32.3]} 31... Kh8 {[%clk
0:00:38.8]} 32. Nxd6 {[%clk 0:00:23.2]} 32... Qxb2 {[%clk 0:00:31.2]} 33. Nf7+
{[%clk 0:00:23.1]} 1-0

[Event "Early-Titled-Tuesday-Blitz-February-13-2024"]
[Site "Chess.com"]
[Date "2024.02.13"]
[Round "6"]
[White "RantomOpening"]
[Black "Nellichka"]
[Result "1-0"]
[WhiteElo "2480"]
[BlackElo "2079"]
[TimeControl "180+1"]
[EndTime "9:09:27 PST"]
[Termination "RantomOpening won on time"]

1. d4 {[%clk 0:02:58.1]} 1... Nf6 {[%clk 0:02:58.6]} 2. Nf3 {[%clk 0:02:46.3]}
2... c5 {[%clk 0:02:57.4]} 3. e3 {[%clk 0:02:45.3]} 3... d5 {[%clk 0:02:47.1]}
4. b3 {[%clk 0:02:41.6]} 4... Bg4 {[%clk 0:02:43.6]} 5. Be2 {[%clk 0:02:41.4]}
5... Nc6 {[%clk 0:02:38.4]} 6. Bb2 {[%clk 0:02:38.7]} 6... Bxf3 {[%clk 0:02:37]}
7. Bxf3 {[%clk 0:02:38.9]} 7... cxd4 {[%clk 0:02:32.4]} 8. exd4 {[%clk 0:02:39]}
8... e6 {[%clk 0:02:32.5]} 9. O-O {[%clk 0:02:39.3]} 9... Bd6 {[%clk 0:02:31.6]}
10. Nd2 {[%clk 0:02:35.5]} 10... O-O {[%clk 0:02:24.9]} 11. g3 {[%clk 0:02:35]}
11... Qb6 {[%clk 0:02:18]} 12. c3 {[%clk 0:02:27.4]} 12... Rac8 {[%clk
0:02:12.4]} 13. Bg2 {[%clk 0:02:27.1]} 13... a5 {[%clk 0:02:01.6]} 14. a4 {[%clk
0:02:25]} 14... Rfd8 {[%clk 0:01:49.7]} 15. Nf3 {[%clk 0:02:18.6]} 15... e5
{[%clk 0:01:47.2]} 16. dxe5 {[%clk 0:02:17.8]} 16... Nxe5 {[%clk 0:01:46.6]} 17.
Nd4 {[%clk 0:02:17.8]} 17... Bc5 {[%clk 0:01:33.2]} 18. Re1 {[%clk 0:02:10.9]}
18... Bxd4 {[%clk 0:01:21.6]} 19. cxd4 {[%clk 0:02:11.8]} 19... Nc6 {[%clk
0:01:19.3]} 20. Rc1 {[%clk 0:02:04.5]} 20... Nb4 {[%clk 0:01:18.1]} 21. Qd2
{[%clk 0:01:57.7]} 21... h6 {[%clk 0:01:09.1]} 22. h3 {[%clk 0:01:56.8]} 22...
Qa6 {[%clk 0:00:50]} 23. Bf1 {[%clk 0:01:54.5]} 23... Qd6 {[%clk 0:00:45.1]} 24.
Bg2 {[%clk 0:01:50.7]} 24... Re8 {[%clk 0:00:42.1]} 25. Ba3 {[%clk 0:01:49.8]}
25... Qb6 {[%clk 0:00:31.3]} 26. Bxb4 {[%clk 0:01:46.2]} 26... axb4 {[%clk
0:00:29.9]} 27. Re5 {[%clk 0:01:45]} 27... Rxc1+ {[%clk 0:00:24.9]} 28. Qxc1
{[%clk 0:01:45.2]} 28... Qxd4 {[%clk 0:00:24.8]} 29. Rxe8+ {[%clk 0:01:44.1]}
29... Nxe8 {[%clk 0:00:24.3]} 30. Qc8 {[%clk 0:01:44.3]} 30... Qe5 {[%clk
0:00:23.1]} 31. Qxb7 {[%clk 0:01:38.7]} 31... d4 {[%clk 0:00:21.6]} 32. Qe4
{[%clk 0:01:34.1]} 32... f6 {[%clk 0:00:19.9]} 33. Qxe5 {[%clk 0:01:32.7]} 33...
fxe5 {[%clk 0:00:19.5]} 34. a5 {[%clk 0:01:33.6]} 34... Nc7 {[%clk 0:00:19.3]}
35. Bb7 {[%clk 0:01:33.9]} 35... d3 {[%clk 0:00:18]} 36. Kf1 {[%clk 0:01:34.2]}
36... Nb5 {[%clk 0:00:14.4]} 37. Ba6 {[%clk 0:01:33.2]} 37... Na7 {[%clk
0:00:13.4]} 38. Bxd3 {[%clk 0:01:33.5]} 38... Kf7 {[%clk 0:00:10.3]} 39. Ke2
{[%clk 0:01:33.7]} 39... Ke6 {[%clk 0:00:10.5]} 40. Ke3 {[%clk 0:01:34.6]} 40...
Kd5 {[%clk 0:00:10.1]} 41. Bc4+ {[%clk 0:01:33.4]} 41... Kd6 {[%clk 0:00:08.9]}
42. Ke4 {[%clk 0:01:33.8]} 42... Nc6 {[%clk 0:00:06.4]} 43. a6 {[%clk
0:01:34.2]} 43... Na7 {[%clk 0:00:06.2]} 44. Bd5 {[%clk 0:01:33.9]} 44... Kc5
{[%clk 0:00:04.5]} 45. Kxe5 {[%clk 0:01:33.3]} 45... Kb6 {[%clk 0:00:04.7]} 46.
Bc4 {[%clk 0:01:33.8]} 46... Nc6+ {[%clk 0:00:03.4]} 47. Kd6 {[%clk 0:01:33.4]}
47... Nb8 {[%clk 0:00:03.2]} 48. f4 {[%clk 0:01:32.7]} 1-0